bitfinex/quotes_BTCUSD_20251012
["timestamp","ask_amount","ask_price","bid_price","bid_amount"]
[1760254609028,0.00095864,111830.0,111820.0,0.25693892]
[1760254609227,0.00095864,111830.0,111820.0,0.25793892]
[1760254610019,0.64993797,111830.0,111820.0,0.25693892]
[1760254610477,0.64993797,111830.0,111820.0,0.25893892]
[1760254610678,0.00095864,111830.0,111820.0,0.25893892]
[1760254610890,0.64993797,111830.0,111820.0,0.05192814]
[1760254611088,1.6389173,111830.0,111820.0,0.23078702]
[1760254611307,1.16878085,111830.0,111820.0,0.23078702]
[1760254613990,0.98993797,111830.0,111820.0,0.23078702]
[1760254614207,1.16878085,111830.0,111820.0,0.23078702]
[1760254614627,0.98993797,111830.0,111820.0,0.23078702]
[1760254615256,1.16878085,111830.0,111820.0,0.23078702]
[1760254615480,0.98993797,111830.0,111820.0,0.23078702]
[1760254615919,0.98993797,111830.0,111820.0,0.26093892]
[1760254617413,1.6389173,111830.0,111820.0,0.26093892]
[1760254617642,1.6389173,111830.0,111820.0,0.23078702]
[1760254618066,0.34095864,111830.0,111820.0,0.23078702]
[1760254618485,1.6389173,111830.0,111820.0,0.23078702]
[1760254620038,1.81776018,111830.0,111820.0,0.23078702]
[1760254620307,1.84466558,111830.0,111820.0,0.23078702]
[1760254621350,1.6658227,111830.0,111820.0,0.23078702]
[1760254621789,1.84466558,111830.0,111820.0,0.23078702]
[1760254622423,1.6658227,111830.0,111820.0,0.23078702]
[1760254623493,1.84466558,111830.0,111820.0,0.23078702]
[1760254624983,1.50370694,111830.0,111820.0,0.23078702]
[1760254626940,1.50370694,111830.0,111820.0,0.26838702]
[1760254627699,1.32486406,111830.0,111820.0,0.26838702]
[1760254628476,1.50370694,111830.0,111820.0,0.26838702]
[1760254628684,1.32486406,111830.0,111820.0,0.26838702]
[1760254628892,1.50370694,111830.0,111820.0,0.26838702]
[1760254630257,1.50370694,111830.0,111820.0,0.08952814]
[1760254630666,1.32486406,111830.0,111820.0,0.26838702]
[1760254630868,1.50370694,111830.0,111820.0,0.26838702]
[1760254631336,1.50370694,111830.0,111820.0,0.26638702]
[1760254631503,1.50370694,111830.0,111820.0,0.08752814]
[1760254631723,1.50370694,111830.0,111820.0,0.08852814]
[1760254632121,1.50370694,111830.0,111820.0,0.08652814]
[1760254632368,1.84370694,111830.0,111820.0,0.08752814]
[1760254633390,1.84370694,111830.0,111820.0,0.26638702]
[1760254638990,1.19472761,111830.0,111820.0,0.26638702]
[1760254639197,1.84370694,111830.0,111820.0,0.26638702]
[1760254641084,1.84370694,111830.0,111820.0,0.08752814]
[1760254641710,1.84370694,111830.0,111820.0,0.26638702]
[1760254644560,1.84370694,111830.0,111820.0,0.08752814]
[1760254644762,1.84370694,111830.0,111820.0,0.26638702]
[1760254645194,1.84370694,111830.0,111820.0,0.08752814]
[1760254647458,1.19470838,111830.0,111820.0,0.08752814]
[1760254651761,0.54574828,111830.0,111820.0,0.08752814]
[1760254651996,1.19470838,111830.0,111820.0,0.26638702]
[1760254652199,1.19470838,111830.0,111820.0,0.08752814]
[1760254652580,1.19470838,111830.0,111820.0,0.26638702]
[1760254652792,0.3669054,111830.0,111820.0,0.26638702]
[1760254652999,0.54574828,111830.0,111820.0,0.26638702]
[1760254653217,1.19470838,111830.0,111820.0,0.26638702]
[1760254653418,1.0158655,111830.0,111820.0,0.26638702]
[1760254654797,1.01563168,111830.0,111820.0,0.26638702]
[1760254655360,0.67563168,111830.0,111820.0,0.29653892]
[1760254655764,0.64872628,111830.0,111820.0,0.29653892]
[1760254655959,0.3669042,111840.0,111830.0,0.17884288]
[1760254656215,1.01563048,111840.0,111830.0,0.21873763]
[1760254657170,1.0156803,111840.0,111830.0,0.21873763]
[1760254657575,1.0156803,111840.0,111830.0,0.22073763]
[1760254658107,1.19450719,111840.0,111830.0,0.22073763]
[1760254659241,1.0156803,111840.0,111830.0,0.22073763]
[1760254660669,1.66440658,111840.0,111830.0,0.22073763]
[1760254660868,1.0156803,111840.0,111830.0,0.22073763]
[1760254661292,0.6756803,111840.0,111830.0,0.22073763]
[1760254661669,0.67626241,111840.0,111830.0,0.22073763]
[1760254661870,0.67626241,111840.0,111830.0,0.21973763]
[1760254662081,0.67626241,111840.0,111830.0,0.22173763]
[1760254662283,0.67626241,111840.0,111830.0,0.22073763]
[1760254663733,0.67626241,111840.0,111830.0,0.22173763]
[1760254668804,0.02753613,111840.0,111830.0,0.22173763]
[1760254669005,0.67626241,111840.0,111830.0,0.22173763]
[1760254671183,0.67626241,111840.0,111830.0,0.56173763]
[1760254671386,0.64935821,111840.0,111830.0,0.56173763]
[1760254671590,0.64935821,111840.0,111830.0,0.59188953]
[1760254671723,0.64935821,111840.0,111830.0,0.61688952]
[1760254672350,0.00063193,111840.0,111830.0,0.61688952]
[1760254675924,0.00063193,111840.0,111830.0,0.71688951]
[1760254680481,0.00063193,111840.0,111830.0,0.61688952]
[1760254680648,0.00063193,111840.0,111830.0,0.71688951]
[1760254683845,0.00063193,111840.0,111830.0,1.36561579]
[1760254685063,0.00063193,111840.0,111830.0,1.55054869]
[1760254685285,0.02689573,111870.0,111860.0,0.20894682]
[1760254685509,0.02694574,111870.0,111860.0,0.27700825]
[1760254685910,5.001e-05,111870.0,111860.0,0.27700825]
[1760254687127,5.001e-05,111870.0,111860.0,0.27800825]
[1760254687365,5.001e-05,111870.0,111860.0,0.27900825]
[1760254688952,5.001e-05,111870.0,111860.0,0.37900824]
[1760254689160,5.001e-05,111870.0,111860.0,0.41660824]
[1760254691000,0.00179579,111870.0,111860.0,0.41660824]
[1760254693513,0.00179579,111870.0,111860.0,0.44349869]
[1760254694429,0.00179579,111870.0,111860.0,0.44249869]
[1760254694620,0.00179579,111870.0,111860.0,0.44149869]
[1760254694816,0.00179579,111870.0,111860.0,0.44349869]
[1760254696840,0.00179579,111870.0,111860.0,0.44549869]
[1760254697587,0.00179579,111870.0,111860.0,0.41534679]
[1760254697801,0.00179579,111870.0,111860.0,0.44549869]
[1760254698006,0.65052207,111870.0,111860.0,0.3454987]
[1760254698216,0.65052207,111870.0,111860.0,0.44549869]
[1760254698637,0.00179579,111870.0,111860.0,0.44549869]
[1760254699054,0.00179579,111870.0,111860.0,0.41860824]
[1760254699660,0.00179579,111870.0,111860.0,0.41660824]
[1760254699799,0.00179579,111870.0,111860.0,0.41460824]
[1760254700018,0.65052207,111870.0,111860.0,0.41560824]
[1760254700215,0.65052207,111870.0,111860.0,0.41760824]
[1760254700631,0.00179579,111870.0,111860.0,0.41760824]
[1760254701396,0.00179579,111870.0,111860.0,0.38745634]
[1760254702825,0.00179579,111870.0,111860.0,0.41760824]
[1760254703389,0.00179579,111870.0,111860.0,0.31760825]
[1760254703583,0.00179579,111870.0,111860.0,0.41760824]
[1760254710382,0.64987277,111870.0,111860.0,0.41760824]
[1760254713158,0.00179579,111870.0,111860.0,0.41760824]
[1760254713732,0.64987277,111870.0,111860.0,0.41760824]
[1760254714348,0.00179579,111870.0,111860.0,0.41760824]
[1760254714553,0.64987277,111870.0,111860.0,0.41760824]
[1760254717544,0.00179579,111870.0,111860.0,0.41760824]
[1760254717995,0.64987277,111870.0,111860.0,0.41760824]
[1760254721273,0.00179579,111870.0,111860.0,0.41760824]
[1760254721639,0.64987277,111870.0,111860.0,0.41760824]
[1760254723588,1.29794975,111870.0,111860.0,0.31760825]
[1760254724557,0.64987277,111870.0,111860.0,0.31760825]
[1760254725576,0.00179579,111870.0,111860.0,0.31560825]
[1760254725745,0.00179579,111870.0,111860.0,0.31660825]
[1760254726085,0.64987277,111870.0,111860.0,0.31560825]
[1760254726720,0.64987277,111870.0,111860.0,0.31660825]
[1760254729354,0.64987277,111870.0,111860.0,0.28645635]
[1760254729554,0.64987277,111870.0,111860.0,0.31660825]
[1760254732891,0.64987277,111870.0,111860.0,0.28645635]
[1760254733092,0.64987277,111870.0,111860.0,0.29332167]
[1760254733297,0.45251499,111870.0,111860.0,0.29332167]
[1760254736069,0.82684246,111880.0,111870.0,0.17877893]
[1760254736262,1.47541956,111880.0,111870.0,0.17877893]
[1760254737362,1.47541956,111880.0,111870.0,0.17977893]
[1760254737615,1.47541956,111880.0,111870.0,0.22698899]
[1760254738403,1.47541956,111880.0,111870.0,0.22798899]
[1760254738584,1.47541956,111880.0,111870.0,0.04921006]
[1760254738785,1.47541956,111880.0,111870.0,0.22798899]
[1760254741030,0.1792656,111880.0,111870.0,0.22798899]
[1760254741180,1.29665408,111880.0,111870.0,0.22798899]
[1760254741384,1.47541704,111880.0,111870.0,0.22798899]
[1760254741806,1.47599884,111880.0,111870.0,0.22798899]
[1760254743316,0.17984488,111880.0,111870.0,0.22798899]
[1760254743516,1.47599884,111880.0,111870.0,0.22798899]
[1760254747815,1.47599884,111880.0,111870.0,0.04921006]
[1760254748015,1.47599884,111880.0,111870.0,0.22798899]
[1760254749578,1.47599884,111880.0,111870.0,0.26558899]
[1760254750016,1.47599884,111880.0,111870.0,0.08681006]
[1760254750791,1.47599884,111880.0,111870.0,0.26558899]
[1760254750988,1.47599884,111880.0,111870.0,0.08681006]
[1760254751229,1.47599884,111880.0,111870.0,0.26558899]
[1760254751967,2.54367582,111880.0,111870.0,0.0396]
[1760254752102,2.57057326,111880.0,111870.0,0.0396]
[1760254752922,2.57057326,111880.0,111870.0,0.0386]
[1760254753783,4.5148042,111880.0,111870.0,0.0376]
[1760254755244,0.51877893,111870.0,111860.0,0.00095821]
[1760254755405,2.48001987,111870.0,111860.0,0.00095821]
[1760254755625,2.54260987,111870.0,111860.0,0.00095821]
[1760254756147,2.56951402,111870.0,111860.0,0.00095821]
[1760254763021,4.51374496,111870.0,111860.0,0.00095821]
[1760254763448,2.65823336,111870.0,111860.0,1e-08]
[1760254763670,4.51374496,111870.0,111860.0,1e-08]
[1760254765411,2.56951402,111870.0,111860.0,1e-08]
[1760254771489,2.57173072,111870.0,111860.0,1e-08]
[1760254773614,2.51735789,111870.0,111860.0,1e-08]
[1760254774029,1.47644266,111850.0,111840.0,0.02212363]
[1760254774235,1.49345266,111850.0,111840.0,0.02212363]
[1760254774358,0.17882689,111840.0,111830.0,0.22538451]
[1760254774564,1.47645865,111840.0,111830.0,0.27386549]
[1760254775401,1.50336338,111840.0,111830.0,0.27386549]
[1760254775633,1.50336338,111840.0,111830.0,0.2739155]
[1760254776388,1.32453649,111840.0,111830.0,0.2739155]
[1760254776652,0.67572061,111840.0,111830.0,0.2739155]
[1760254777211,0.8545475,111840.0,111830.0,0.2749155]
[1760254777413,0.8545475,111840.0,111830.0,0.2759155]
[1760254777628,1.50336338,111840.0,111830.0,0.2759155]
[1760254782784,1.31228104,111840.0,111830.0,0.2759155]
[1760254782964,1.33918572,111840.0,111830.0,0.2759155]
[1760254783171,1.33918572,111840.0,111830.0,0.27766181]
[1760254789120,1.33918572,111840.0,111830.0,0.0898773]
[1760254789389,1.33918572,111840.0,111830.0,0.2202392]
[1760254792082,1.31228104,111840.0,111830.0,0.2202392]
[1760254799798,0.82764277,111840.0,111830.0,0.2202392]
[1760254800524,0.17882689,111840.0,111830.0,0.2202392]
[1760254800947,0.82764277,111840.0,111830.0,0.2202392]
[1760254801151,0.82764277,111840.0,111830.0,0.26104329]
[1760254801784,0.17882689,111840.0,111830.0,0.26104329]
[1760254801990,0.82764277,111840.0,111830.0,0.26104329]
[1760254802422,1.47645865,111840.0,111830.0,0.26104329]
[1760254805673,0.82764277,111840.0,111830.0,0.26104329]
[1760254814639,0.82687639,111840.0,111830.0,0.26104329]
[1760254815097,1.47569227,111840.0,111830.0,0.26104329]
[1760254816242,1.29763176,111840.0,111830.0,0.26104329]
[1760254817217,0.64881588,111840.0,111830.0,0.26104329]
[1760254818171,0.1788109,111850.0,111830.0,0.26104329]
[1760254818392,0.64881588,111840.0,111830.0,0.25929698]
[1760254818615,0.5188109,111850.0,111840.0,0.17882689]
[1760254818874,0.82762678,111850.0,111830.0,0.26104329]
[1760254819073,0.64881588,111840.0,111830.0,0.25729698]
[1760254819445,0.64881588,111840.0,111830.0,0.25829698]
[1760254819808,0.64881588,111840.0,111830.0,0.25729698]
[1760254820302,0.64881588,111840.0,111830.0,0.25829698]
[1760254820455,0.64881588,111840.0,111830.0,0.25929698]
[1760254820649,0.64881588,111840.0,111830.0,0.25429698]
[1760254821813,0.5188109,111850.0,111840.0,0.17882689]
[1760254822015,0.5188109,111850.0,111840.0,0.22213928]
[1760254822422,0.34,111850.0,111840.0,0.22213928]
[1760254822833,0.36690468,111860.0,111850.0,0.1788109]
[1760254823041,0.8276108,111860.0,111850.0,0.1788109]
[1760254823478,0.23258835,111870.0,111860.0,0.17879492]
[1760254823682,1.67217887,111870.0,111860.0,0.20871475]
[1760254823857,1.85098275,111870.0,111860.0,0.20871475]
[1760254824700,0.00095817,111870.0,111860.0,0.20871475]
[1760254824900,0.00095817,111870.0,111860.0,0.23886665]
[1760254825141,0.00095817,111870.0,111860.0,0.60386664]
[1760254825400,0.64881588,111910.0,111900.0,0.178731]
[1760254825610,0.64881588,111910.0,111900.0,0.2520788]
[1760254826654,0.649316,111910.0,111900.0,0.2520788]
[1760254827501,0.82803103,111910.0,111900.0,0.0733478]
[1760254828374,0.82803103,111910.0,111900.0,0.2520788]
[1760254829222,0.82803103,111910.0,111900.0,0.2530788]
[1760254829882,0.82803103,111910.0,111900.0,0.2540788]
[1760254830548,0.17921515,111910.0,111900.0,0.0396]
[1760254830755,0.82803103,111910.0,111900.0,0.218331]
[1760254832884,0.17921515,111910.0,111900.0,0.218331]
[1760254833094,0.82803103,111910.0,111900.0,0.218331]
[1760254833541,0.8270922,111910.0,111900.0,0.218331]
[1760254833755,0.8270922,111910.0,111900.0,0.26143253]
[1760254835575,0.82941878,111910.0,111900.0,0.26143253]
[1760254843134,0.00232658,111910.0,111900.0,0.26143253]
[1760254843338,0.82891866,111910.0,111900.0,0.26143253]
[1760254845220,0.82891866,111910.0,111900.0,0.08270153]
[1760254845707,0.82891866,111910.0,111900.0,0.26143253]
[1760254847456,0.64331491,111910.0,111900.0,0.26143253]
[1760254847657,0.17871503,111910.0,111900.0,0.26143253]
[1760254847853,0.82659208,111910.0,111900.0,0.26143253]
[1760254850948,0.82659208,111910.0,111900.0,0.08270153]
[1760254851151,0.82659208,111910.0,111900.0,0.26143253]
[1760254854530,0.82659208,111910.0,111900.0,0.08270153]
[1760254854768,1.56911737,111910.0,111900.0,0.0396]
[1760254855191,1.57748278,111910.0,111900.0,0.0396]
[1760254855894,1.57748278,111910.0,111900.0,0.0386]
[1760254856302,1.56077454,111910.0,111900.0,0.0386]
[1760254856516,1.56077454,111910.0,111900.0,0.0376]
[1760254856730,1.55240913,111910.0,111900.0,0.0376]
[1760254859363,2.20028618,111910.0,111900.0,0.0376]
[1760254859513,1.55240913,111910.0,111900.0,0.0376]
[1760254860676,1.90134488,111910.0,111870.0,0.09662361]
[1760254860952,1.2957541,111880.0,111870.0,0.34819331]
[1760254861156,0.17876258,111890.0,111870.0,0.38575331]
[1760254861362,0.17876258,111890.0,111870.0,0.31412969]
[1760254861572,0.64787705,111880.0,111870.0,0.31412969]
[1760254862391,0.82664001,111880.0,111870.0,0.13535675]
[1760254862617,0.64787705,111880.0,111870.0,0.24649083]
[1760254862821,0.64787705,111880.0,111870.0,0.64649083]
[1760254863022,1.2957541,111880.0,111870.0,0.64649083]
[1760254863269,1.47451706,111880.0,111870.0,0.64649083]
[1760254863471,1.47451706,111880.0,111870.0,0.64749083]
[1760254863650,1.47451706,111880.0,111870.0,0.73160731]
[1760254864082,0.17876258,111890.0,111870.0,0.73160731]
[1760254864285,1.47451706,111880.0,111870.0,0.73160731]
[1760254864484,0.17876296,111880.0,111870.0,0.73260731]
[1760254864690,1.47451706,111880.0,111870.0,0.73260731]
[1760254865139,0.64787705,111880.0,111870.0,0.73160731]
[1760254865358,0.82662663,111890.0,111880.0,0.17876296]
[1760254865563,0.17874958,111890.0,111880.0,0.20868279]
[1760254866187,0.58186078,111910.0,111900.0,0.00095777]
[1760254866188,0.17871703,111910.0,111900.0,0.00095777]
[1760254866624,0.17871703,111910.0,111900.0,0.17968877]
[1760254866625,0.82659408,111910.0,111900.0,0.17968877]
[1760254867274,0.17871703,111910.0,111900.0,0.17968877]
[1760254867488,0.82659408,111910.0,111900.0,0.21553235]
[1760254868686,0.82659408,111910.0,111900.0,0.25313235]
[1760254870379,0.17871703,111910.0,111900.0,0.25313235]
[1760254870554,0.82659408,111910.0,111900.0,0.25313235]
[1760254871206,0.82659408,111910.0,111900.0,0.07440135]
[1760254871606,0.82659408,111910.0,111900.0,0.25313235]
[1760254871808,0.17871703,111910.0,111900.0,0.25313235]
[1760254872036,0.64787705,111910.0,111900.0,0.25313235]
[1760254872248,0.82659408,111910.0,111900.0,0.25313235]
[1760254872436,0.82659408,111910.0,111900.0,0.07440135]
[1760254873023,1.47447113,111910.0,111900.0,0.07440135]
[1760254874370,1.47447113,111910.0,111900.0,0.25413235]
[1760254874714,1.49762113,111910.0,111900.0,0.07540135]
[1760254874915,1.47447113,111910.0,111900.0,0.25413235]
[1760254875114,1.47447113,111910.0,111900.0,0.07540135]
[1760254875322,1.47447113,111910.0,111900.0,0.25413235]
[1760254875721,1.49762113,111910.0,111900.0,0.07540135]
[1760254876097,1.47447113,111910.0,111900.0,0.25413235]
[1760254882251,1.47447113,111910.0,111900.0,0.07540135]
[1760254882461,1.47447113,111910.0,111900.0,0.25413235]
[1760254884368,1.47447113,111910.0,111900.0,0.07540135]
[1760254890228,1.47447113,111910.0,111900.0,0.03955777]
[1760254890229,2.19932818,111910.0,111900.0,0.03955777]
[1760254890430,1.55145113,111910.0,111900.0,0.03955777]
[1760254895104,2.53932818,111910.0,111900.0,0.03955777]
[1760254895534,1.89210787,111910.0,111900.0,0.03955777]
[1760254896077,1.89210787,111910.0,111900.0,0.03855777]
[1760254896302,1.89210787,111910.0,111900.0,0.00095777]
[1760254899515,1.47514184,111900.0,111890.0,0.03551777]
[1760254899667,1.49223184,111900.0,111890.0,0.03551777]
[1760254899889,1.55371184,111900.0,111890.0,0.03551777]
[1760254901092,1.55371184,111900.0,111890.0,0.03651777]
[1760254905214,1.89371184,111900.0,111890.0,0.03709946]
[1760254907438,1.89371184,111900.0,111890.0,0.03609946]
[1760254917391,1.92060571,111900.0,111890.0,0.03609946]
[1760254920677,1.92067571,111900.0,111890.0,0.03609946]
[1760254921910,1.89348634,111900.0,111890.0,0.03609946]
[1760254922096,1.91096634,111900.0,111890.0,0.03609946]
[1760254925430,1.91096634,111900.0,111890.0,0.05758569]
[1760254926636,1.87422634,111900.0,111890.0,0.05758569]
[1760254926890,0.64820542,111900.0,111890.0,0.23633267]
[1760254928202,0.82693642,111900.0,111890.0,0.23633267]
[1760254928403,1.47514184,111900.0,111890.0,0.23733267]
[1760254929227,0.82693642,111900.0,111890.0,0.23833267]
[1760254930491,1.47514184,111900.0,111890.0,0.23833267]
[1760254931512,0.178731,111900.0,111890.0,0.23833267]
[1760254931754,0.64820542,111900.0,111890.0,0.23833267]
[1760254932587,0.82693642,111900.0,111890.0,0.23833267]
[1760254933210,0.64820542,111900.0,111890.0,0.23833267]
[1760254934874,0.02784764,111910.0,111900.0,0.178731]
[1760254935090,0.02784764,111910.0,111900.0,0.29760224]
[1760254935091,0.00095772,111910.0,111900.0,0.29760224]
[1760254935534,0.00095772,111910.0,111900.0,0.66260223]
[1760254936204,0.00095772,111910.0,111900.0,0.66360223]
[1760254937122,0.00095772,111910.0,111900.0,0.66460223]
[1760254937542,0.00095772,111910.0,111900.0,1.06460223]
[1760254939227,0.00095772,111910.0,111900.0,1.71280765]
[1760254940674,0.00095772,111910.0,111900.0,1.06460223]
[1760254947826,0.00095772,111910.0,111900.0,1.03445033]
[1760254949612,0.00095772,111910.0,111900.0,1.06460223]
[1760254950567,0.00095772,111910.0,111900.0,0.66460223]
[1760254951011,0.00095772,111910.0,111900.0,1.06460223]
[1760254951490,0.00095772,111910.0,111900.0,1.03445033]
[1760254951783,0.00095772,111910.0,111900.0,1.06460223]
[1760254953985,0.00095772,111910.0,111900.0,1.10216223]
[1760254958937,0.00095772,111910.0,111900.0,1.74983365]
[1760254959213,0.00095772,111910.0,111900.0,2.39750507]
[1760254959712,0.64787142,111930.0,111900.0,2.39750507]
[1760254959713,0.0002,111930.0,111900.0,2.39750507]
[1760254959852,0.00028938,111930.0,111920.0,0.88152238]
[1760254960050,0.00028938,111930.0,111920.0,0.90683935]
[1760254960261,0.00028938,111930.0,111920.0,0.25916793]
[1760254960482,0.00145226,111930.0,111920.0,0.65916793]
[1760254960654,0.00145226,111930.0,111920.0,1.30683935]
[1760254961057,0.00145226,111930.0,111920.0,0.65916793]
[1760254961306,0.00145226,111930.0,111920.0,0.66016793]
[1760254962284,0.00145226,111930.0,111920.0,1.30983935]
[1760254963196,0.00145226,111930.0,111920.0,1.95751077]
[1760254963662,0.00145226,111930.0,111920.0,2.29751077]
[1760254963829,0.00145226,111930.0,111920.0,2.39751076]
[1760254964033,0.00145226,111930.0,111920.0,2.40109396]
[1760254968584,0.0002,111940.0,111930.0,0.20368309]
[1760254968585,1e-08,111940.0,111930.0,0.20368309]
[1760254968776,1e-08,111940.0,111930.0,1.31022575]
[1760254969421,1e-08,111940.0,111930.0,1.78147219]
[1760254970095,1e-08,111940.0,111930.0,1.78247219]
[1760254970449,1e-08,111940.0,111930.0,1.78147219]
[1760254970794,1e-08,111940.0,111930.0,1.78347219]
[1760254970945,1e-08,111940.0,111930.0,1.71680837]
[1760254971506,1e-08,111940.0,111930.0,1.71580837]
[1760254971951,1e-08,111940.0,111930.0,1.71780837]
[1760254973099,1e-08,111940.0,111930.0,2.36547979]
[1760254973310,0.0002,111960.0,111950.0,1.22147449]
[1760254973518,0.0002,111960.0,111950.0,1.24679146]
[1760254973718,0.0002,111960.0,111950.0,1.34679145]
[1760254973919,0.0002,111960.0,111950.0,1.24679146]
[1760254974120,0.0002,111960.0,111950.0,1.74679145]
[1760254974554,0.0019437,111960.0,111950.0,1.7503737]
[1760254974770,0.0019437,111960.0,111950.0,1.7513737]
[1760254974976,0.0002,111970.0,111960.0,1.22145853]
[1760254975183,0.00033402,111970.0,111960.0,1.31017787]
[1760254975368,0.00033402,111970.0,111960.0,1.42272682]
[1760254975571,0.00033402,111970.0,111960.0,1.31017787]
[1760254976218,0.00033402,111970.0,111960.0,1.95784929]
[1760254976422,0.00033402,111970.0,111960.0,1.31017787]
[1760254976700,0.00033402,111970.0,111960.0,1.31117787]
[1760254976848,0.00033402,111970.0,111960.0,1.95884929]
[1760254977872,0.00033402,111970.0,111960.0,0.66550645]
[1760254978069,0.00033402,111970.0,111960.0,1.99840929]
[1760254978276,0.00033402,111970.0,111960.0,1.34873787]
[1760254978727,0.00033402,111970.0,111960.0,2.39640929]
[1760254978934,0.00033402,111970.0,111960.0,1.75073787]
[1760254979366,0.00033402,111970.0,111960.0,1.74973787]
[1760254979655,1e-08,111970.0,111960.0,2.49940928]
[1760254980532,0.00058111,111970.0,111960.0,1.85173786]
[1760254982928,0.64825253,111970.0,111960.0,1.10406645]
[1760254983274,1.51550322,111970.0,111960.0,0.004]
[1760254983506,1.55057322,111970.0,111960.0,0.004]
[1760254983711,1.55057322,111970.0,111960.0,0.002]
[1760254983913,0.17863522,111960.0,111950.0,0.03851725]
[1760254984119,1.47397806,111960.0,111950.0,0.10112902]
[1760254984657,0.25821433,111970.0,111950.0,0.2797802]
[1760254984658,0.22314433,111970.0,111950.0,0.2797802]
[1760254984870,0.02745506,111970.0,111960.0,0.17863522]
[1760254985069,0.8268718,111970.0,111960.0,0.17863522]
[1760254985277,0.64825253,111970.0,111960.0,0.17863522]
[1760254985624,0.64825253,111970.0,111960.0,0.24234028]
[1760254985835,0.64825253,111970.0,111960.0,0.22447676]
[1760254987485,0.64825253,111970.0,111960.0,0.22547676]
[1760254987688,0.48309946,111970.0,111960.0,0.22547676]
[1760254989109,0.21460765,111980.0,111960.0,0.22547676]
[1760254989282,0.64767142,111970.0,111960.0,0.22547676]
[1760254990094,0.64767142,111970.0,111960.0,0.22447676]
[1760254992799,0.64767142,111970.0,111960.0,0.22547676]
[1760254993497,0.82629069,111970.0,111960.0,0.22547676]
[1760254994732,0.64767142,111970.0,111960.0,0.22547676]
[1760254995549,2.19764353,111970.0,111960.0,0.001]
[1760254995730,1.54997211,111970.0,111960.0,0.001]
[1760254996138,1.5768463,111970.0,111960.0,0.001]
[1760254997728,0.51863522,111960.0,111950.0,0.00095725]
[1760254997928,4.51004308,111960.0,111950.0,0.00095725]
[1760254998152,4.48067374,111960.0,111950.0,0.00095725]
[1760254998417,4.48067374,111960.0,111950.0,1e-08]
[1760254998623,0.17866714,111940.0,111930.0,0.10918362]
[1760254998802,2.1617414,111940.0,111930.0,0.10918362]
[1760254999041,2.1976914,111940.0,111930.0,0.03756]
[1760254999240,2.1976914,111940.0,111930.0,0.0393039]
[1760254999447,2.22457556,111940.0,111930.0,0.0393039]
[1760254999798,2.22457556,111940.0,111930.0,0.03943792]
[1760255010656,4.16758982,111940.0,111930.0,0.03943792]
[1760255012911,2.46174526,111900.0,111890.0,0.07162362]
[1760255013088,2.47840526,111900.0,111890.0,0.07212374]
[1760255013325,3.19484559,111900.0,111890.0,0.00050012]
[1760255013524,4.49018843,111900.0,111890.0,0.00282656]
[1760255013725,4.60580374,111900.0,111890.0,0.00282656]
[1760255017754,4.60680374,111900.0,111890.0,0.00282656]
[1760255017951,0.63205588,111900.0,111890.0,0.00282656]
[1760255018096,4.5190844,111900.0,111890.0,0.00282656]
[1760255019599,2.57863367,111900.0,111890.0,0.00282656]
[1760255027273,0.63305588,111900.0,111890.0,0.00282656]
[1760255027521,1.93010774,111900.0,111890.0,0.00282656]
[1760255027864,1.92068883,111900.0,111890.0,0.00282656]
[1760255028072,1.58068883,111900.0,111890.0,0.00282656]
[1760255028269,1.57868883,111900.0,111890.0,0.00282656]
[1760255028515,1.91868883,111900.0,111890.0,0.00282656]
[1760255031163,1.94357442,111900.0,111890.0,0.00282656]
[1760255031389,1.95311438,111900.0,111890.0,0.00282656]
[1760255034893,1.96146486,111900.0,111890.0,0.00282656]
[1760255036923,1.93456889,111900.0,111890.0,0.00282656]
[1760255037075,1.90461477,111900.0,111890.0,0.00282656]
[1760255045981,0.60756291,111900.0,111890.0,0.00282656]
[1760255046326,1.90461477,111900.0,111890.0,0.00282656]
[1760255048997,2.5531407,111900.0,111890.0,0.00282656]
[1760255049205,1.90461477,111900.0,111890.0,0.00282656]
[1760255053796,1.89626429,111900.0,111890.0,0.00282656]
[1760255054023,1.90459916,111900.0,111890.0,0.00282656]
[1760255054430,1.89626429,111900.0,111890.0,0.00282656]
[1760255059546,1.71271555,111900.0,111890.0,0.00282656]
[1760255059767,1.75478555,111900.0,111890.0,0.00282656]
[1760255061783,1.78805555,111900.0,111890.0,0.00282656]
[1760255063461,1.79641982,111900.0,111890.0,0.00282656]
[1760255068989,1.78805555,111900.0,111890.0,0.00282656]
[1760255070293,0.64852593,111900.0,111890.0,0.06135656]
[1760255070522,1.49975286,111900.0,111890.0,0.05265044]
[1760255070737,1.55112286,111900.0,111890.0,0.00282656]
[1760255070953,1.55112286,111900.0,111890.0,0.20570354]
[1760255071169,1.51785286,111900.0,111890.0,0.02695656]
[1760255071386,1.51785286,111900.0,111890.0,0.20570354]
[1760255071554,1.51785286,111900.0,111890.0,0.02695656]
[1760255073624,1.51785286,111900.0,111890.0,0.06135656]
[1760255074459,1.51785286,111900.0,111890.0,0.02695656]
[1760255076146,1.51785286,111900.0,111890.0,0.06135656]
[1760255078165,1.51785286,111900.0,111890.0,0.09895656]
[1760255079098,1.51785286,111900.0,111890.0,0.06455656]
[1760255081519,1.51715894,111900.0,111890.0,0.06455656]
[1760255082646,2.19860791,111900.0,111890.0,0.04042656]
[1760255087502,0.178731,111900.0,111890.0,0.09589656]
[1760255087713,1.47508894,111900.0,111890.0,0.09589656]
[1760255087935,2.14597791,111900.0,111890.0,0.06218656]
[1760255088151,1.49779894,111900.0,111890.0,0.06218656]
[1760255088451,1.49779894,111900.0,111890.0,0.09589656]
[1760255088657,1.47508894,111900.0,111890.0,0.09589656]
[1760255089083,1.47508894,111900.0,111890.0,0.06218656]
[1760255089084,1.49779894,111900.0,111890.0,0.06218656]
[1760255089758,1.51536894,111900.0,111890.0,0.06218656]
[1760255089970,0.178731,111900.0,111890.0,0.12504442]
[1760255090171,1.47508894,111900.0,111890.0,0.12504442]
[1760255090583,1.47508894,111900.0,111890.0,0.09589656]
[1760255090766,1.49779894,111900.0,111890.0,0.09589656]
[1760255091426,1.49779894,111900.0,111890.0,0.06218656]
[1760255092321,1.54925894,111900.0,111890.0,0.06218656]
[1760255093979,1.54925894,111900.0,111890.0,0.04042656]
[1760255094342,0.72234897,111900.0,111890.0,0.04042656]
[1760255094546,1.88925894,111900.0,111890.0,0.04042656]
[1760255094745,0.592901,111900.0,111890.0,0.04042656]
[1760255094946,2.53743791,111900.0,111890.0,0.04042656]
[1760255095469,2.62615725,111900.0,111890.0,0.04042656]
[1760255095670,2.53743791,111900.0,111890.0,0.04042656]
[1760255096793,2.53843791,111900.0,111890.0,0.04042656]
[1760255097000,0.17877893,111870.0,111860.0,0.12604362]
[1760255097195,1.51541687,111870.0,111860.0,0.109313]
[1760255097457,1.54930687,111870.0,111860.0,0.109313]
[1760255097666,1.54930687,111870.0,111860.0,0.03943496]
[1760255098060,1.57620682,111870.0,111860.0,0.03943496]
[1760255103921,2.56438579,111870.0,111860.0,0.03943496]
[1760255104326,1.91620682,111870.0,111860.0,0.03943496]
[1760255104495,2.56438579,111870.0,111860.0,0.03943496]
[1760255104906,1.91620682,111870.0,111860.0,0.03943496]